[Event "Titled Tuesday Blitz November 22 Late 2022"]
[White "Baltaci, Ismail Tarik"]
[Black "Salman, Pavel"]
[WhiteFideId "6365213"]
[BlackFideId "24153753"]
[WhiteElo "2348"]
[BlackElo "2187"]
[Result "1-0"]
[Round "11"]
[TimeControl "180+1"]
[Date "2022.11.23"]
[WhiteClock "0:00:54"]
[BlackClock "0:00:17"]

1. e4 {[%clk 0:03:00]}  d6 {[%clk 0:02:59]} 2. d4 {[%clk 0:03:00]}  Nf6 {[%clk 0:02:59]} 3. Nc3 {[%clk 0:02:58]}  g6 {[%clk 0:03:00]} 4. Be3 {[%clk 0:02:55]}  Bg7 {[%clk 0:02:58]} 5. Qd2 {[%clk 0:02:56]}  O-O {[%clk 0:02:54]} 6. O-O-O {[%clk 0:02:55]}  c5 {[%clk 0:02:54]} 7. Nf3 {[%clk 0:02:50]}  Qa5 {[%clk 0:02:51]} 8. Kb1 {[%clk 0:02:45]}  Nc6 {[%clk 0:02:46]} 9. h3 {[%clk 0:02:35]}  cxd4 {[%clk 0:02:34]} 10. Nxd4 {[%clk 0:02:34]}  Nxd4 {[%clk 0:02:35]} 11. Bxd4 {[%clk 0:02:33]}  Be6 {[%clk 0:02:35]} 12. Nd5 {[%clk 0:02:16]}  Qxd2 {[%clk 0:02:12]} 13. Nxf6+ {[%clk 0:02:15]}  Bxf6 {[%clk 0:02:08]} 14. Rxd2 {[%clk 0:02:16]}  Bxd4 {[%clk 0:02:00]} 15. Rxd4 {[%clk 0:02:17]}  Rac8 {[%clk 0:01:59]} 16. Bd3 {[%clk 0:02:15]}  Rc5 {[%clk 0:01:57]} 17. f4 {[%clk 0:02:15]}  f5 {[%clk 0:01:55]} 18. Re1 {[%clk 0:02:13]}  Rc7 {[%clk 0:01:32]} 19. e5 {[%clk 0:02:11]}  d5 {[%clk 0:01:22]} 20. Rg1 {[%clk 0:01:55]}  a5 {[%clk 0:01:19]} 21. g4 {[%clk 0:01:54]}  fxg4 {[%clk 0:01:20]} 22. hxg4 {[%clk 0:01:55]}  b6 {[%clk 0:01:20]} 23. f5 {[%clk 0:01:54]}  Bc8 {[%clk 0:01:13]} 24. Rxd5 {[%clk 0:01:53]}  e6 {[%clk 0:01:12]} 25. fxe6 {[%clk 0:01:46]}  Bxe6 {[%clk 0:01:12]} 26. Rd6 {[%clk 0:01:47]}  Bc4 {[%clk 0:00:50]} 27. Bxc4+ {[%clk 0:01:20]}  Rxc4 {[%clk 0:00:51]} 28. b3 {[%clk 0:01:20]}  Re4 {[%clk 0:00:48]} 29. e6 {[%clk 0:01:21]}  Re8 {[%clk 0:00:46]} 30. Rxb6 {[%clk 0:01:20]}  R8xe6 {[%clk 0:00:46]} 31. Rxe6 {[%clk 0:01:19]}  Rxe6 {[%clk 0:00:47]} 32. g5 {[%clk 0:01:19]}  Re5 {[%clk 0:00:42]} 33. Kb2 {[%clk 0:01:19]}  Kf7 {[%clk 0:00:43]} 34. a3 {[%clk 0:01:07]}  Ke6 {[%clk 0:00:42]} 35. b4 {[%clk 0:01:06]}  a4 {[%clk 0:00:38]} 36. Kc3 {[%clk 0:01:05]}  Re3+ {[%clk 0:00:37]} 37. Kb2 {[%clk 0:01:04]}  Kf5 {[%clk 0:00:35]} 38. c4 {[%clk 0:01:03]}  Rb3+ {[%clk 0:00:35]} 39. Ka2 {[%clk 0:01:03]}  Ke4 {[%clk 0:00:30]} 40. c5 {[%clk 0:01:02]}  Kd5 {[%clk 0:00:20]} 41. Rd1+ {[%clk 0:01:00]}  Kc6 {[%clk 0:00:19]} 42. Rd6+ {[%clk 0:01:00]}  Kc7 {[%clk 0:00:19]} 43. Ra6 {[%clk 0:00:59]}  Rg3 {[%clk 0:00:17]} 44. Rxa4 {[%clk 0:00:59]}  Kb7 {[%clk 0:00:17]} 45. Ra5 {[%clk 0:00:54]}  Rxg5 {[%clk 0:00:17]} 46. c6+ {[%clk 0:00:54]}  Kxc6 {[%clk 0:00:17]} 47. Rxg5 {[%clk 0:00:55]}  Kb6 {[%clk 0:00:18]} 48. Kb3 {[%clk 0:00:54]}  h6 {[%clk 0:00:17]} 49. Rxg6+ {[%clk 0:00:54]} 1-0


[Site "https://www.chess.com"]

[Event "Titled Tuesday Blitz November 22 Late 2022"]
[White "Bazzano, Sebastian"]
[Black "Prydun, Andriy"]
[WhiteFideId "104566"]
[BlackFideId "14145898"]
[WhiteElo "2217"]
[BlackElo "2163"]
[Result "1-0"]
[Round "11"]
[TimeControl "180+1"]
[Date "2022.11.23"]
[WhiteClock "0:00:03"]
[BlackClock "0:00:06"]

1. d4 {[%clk 0:02:59]}  e6 {[%clk 0:02:59]} 2. Bf4 {[%clk 0:02:59]}  c5 {[%clk 0:02:57]} 3. Nc3 {[%clk 0:02:40]}  cxd4 {[%clk 0:02:52]} 4. Qxd4 {[%clk 0:02:41]}  Nc6 {[%clk 0:02:50]} 5. Qd2 {[%clk 0:02:38]}  Nf6 {[%clk 0:02:41]} 6. e4 {[%clk 0:02:33]}  Bb4 {[%clk 0:02:39]} 7. Bd3 {[%clk 0:02:32]}  d5 {[%clk 0:02:38]} 8. exd5 {[%clk 0:02:20]}  Nxd5 {[%clk 0:02:37]} 9. Nge2 {[%clk 0:02:05]}  O-O {[%clk 0:02:33]} 10. a3 {[%clk 0:01:47]}  Nxf4 {[%clk 0:02:31]} 11. Qxf4 {[%clk 0:01:43]}  Be7 {[%clk 0:02:16]} 12. O-O-O {[%clk 0:01:33]}  Qa5 {[%clk 0:02:05]} 13. Kb1 {[%clk 0:01:28]}  e5 {[%clk 0:02:01]} 14. Qe4 {[%clk 0:01:19]}  g6 {[%clk 0:02:00]} 15. h4 {[%clk 0:00:53]}  Be6 {[%clk 0:01:54]} 16. h5 {[%clk 0:00:38]}  f5 {[%clk 0:01:53]} 17. Qe3 {[%clk 0:00:37]}  g5 {[%clk 0:01:43]} 18. f4 {[%clk 0:00:19]}  Qb6 {[%clk 0:01:06]} 19. Qxb6 {[%clk 0:00:16]}  axb6 {[%clk 0:01:05]} 20. fxe5 {[%clk 0:00:16]}  Nxe5 {[%clk 0:01:02]} 21. Nd4 {[%clk 0:00:16]}  Bd7 {[%clk 0:00:54]} 22. Bb5 {[%clk 0:00:15]}  Bxb5 {[%clk 0:00:46]} 23. Ndxb5 {[%clk 0:00:15]}  Nc6 {[%clk 0:00:41]} 24. Nd5 {[%clk 0:00:13]}  Bc5 {[%clk 0:00:40]} 25. Nbc7 {[%clk 0:00:11]}  Rac8 {[%clk 0:00:37]} 26. Ne6 {[%clk 0:00:11]}  Rfe8 {[%clk 0:00:35]} 27. Nf6+ {[%clk 0:00:10]}  Kh8 {[%clk 0:00:31]} 28. Nxe8 {[%clk 0:00:10]}  Rxe8 {[%clk 0:00:32]} 29. Nxg5 {[%clk 0:00:11]}  h6 {[%clk 0:00:30]} 30. Nf3 {[%clk 0:00:10]}  Re2 {[%clk 0:00:29]} 31. Nh4 {[%clk 0:00:09]}  Nd4 {[%clk 0:00:27]} 32. c3 {[%clk 0:00:07]}  Nb5 {[%clk 0:00:26]} 33. Rhe1 {[%clk 0:00:07]}  Rxe1 {[%clk 0:00:19]} 34. Rxe1 {[%clk 0:00:07]}  Bf2 {[%clk 0:00:18]} 35. Re8+ {[%clk 0:00:06]}  Kg7 {[%clk 0:00:18]} 36. Nxf5+ {[%clk 0:00:07]}  Kf7 {[%clk 0:00:19]} 37. Rb8 {[%clk 0:00:05]}  Kf6 {[%clk 0:00:18]} 38. Nd4 {[%clk 0:00:05]}  Nxd4 {[%clk 0:00:18]} 39. cxd4 {[%clk 0:00:05]}  Bxd4 {[%clk 0:00:18]} 40. Rxb7 {[%clk 0:00:05]}  Kg5 {[%clk 0:00:19]} 41. b4 {[%clk 0:00:03]}  Kxh5 {[%clk 0:00:14]} 42. a4 {[%clk 0:00:03]}  Kg4 {[%clk 0:00:14]} 43. Rb8 {[%clk 0:00:03]}  Kg3 {[%clk 0:00:13]} 44. Rg8+ {[%clk 0:00:03]}  Kf2 {[%clk 0:00:13]} 45. a5 {[%clk 0:00:03]}  bxa5 {[%clk 0:00:12]} 46. bxa5 {[%clk 0:00:04]}  h5 {[%clk 0:00:12]} 47. Kc2 {[%clk 0:00:04]}  h4 {[%clk 0:00:12]} 48. Kd3 {[%clk 0:00:04]}  Ba7 {[%clk 0:00:10]} 49. Kc4 {[%clk 0:00:04]}  Kg1 {[%clk 0:00:09]} 50. Kb5 {[%clk 0:00:04]}  Bf2 {[%clk 0:00:09]} 51. a6 {[%clk 0:00:04]}  Kh2 {[%clk 0:00:07]} 52. Kc6 {[%clk 0:00:04]}  Kg1 {[%clk 0:00:06]} 53. Kb7 {[%clk 0:00:03]} 1-0


[Site "https://www.chess.com"]

[Event "Titled Tuesday Blitz November 22 Late 2022"]
[White "Bortnyk, Olexandr"]
[Black "Kollars, Dmitrij"]
[WhiteFideId "14120828"]
[BlackFideId "12909572"]
[WhiteElo "2723"]
[BlackElo "2584"]
[Result "0-1"]
[Round "11"]
[TimeControl "180+1"]
[Date "2022.11.23"]
[WhiteClock "0:00:01"]
[BlackClock "0:00:15"]

1. e4 {[%clk 0:03:00]}  e5 {[%clk 0:02:59]} 2. Nf3 {[%clk 0:03:00]}  Nc6 {[%clk 0:03:00]} 3. Bb5 {[%clk 0:03:00]}  a6 {[%clk 0:03:00]} 4. Ba4 {[%clk 0:03:00]}  Nf6 {[%clk 0:03:00]} 5. Qe2 {[%clk 0:03:01]}  b5 {[%clk 0:02:57]} 6. Bb3 {[%clk 0:03:01]}  Be7 {[%clk 0:02:58]} 7. c3 {[%clk 0:03:01]}  O-O {[%clk 0:02:55]} 8. d3 {[%clk 0:03:00]}  d5 {[%clk 0:02:54]} 9. h3 {[%clk 0:03:01]}  Re8 {[%clk 0:02:37]} 10. O-O {[%clk 0:03:00]}  h6 {[%clk 0:02:34]} 11. Rd1 {[%clk 0:02:59]}  Be6 {[%clk 0:02:32]} 12. Nbd2 {[%clk 0:02:59]}  a5 {[%clk 0:02:29]} 13. Nf1 {[%clk 0:02:59]}  a4 {[%clk 0:02:28]} 14. Bc2 {[%clk 0:02:59]}  d4 {[%clk 0:02:19]} 15. a3 {[%clk 0:02:53]}  Nd7 {[%clk 0:02:16]} 16. cxd4 {[%clk 0:02:49]}  Nxd4 {[%clk 0:02:13]} 17. Nxd4 {[%clk 0:02:47]}  exd4 {[%clk 0:02:14]} 18. f4 {[%clk 0:02:48]}  Nc5 {[%clk 0:02:11]} 19. f5 {[%clk 0:02:43]}  Bb3 {[%clk 0:02:01]} 20. Bf4 {[%clk 0:02:03]}  Bxc2 {[%clk 0:01:58]} 21. Qxc2 {[%clk 0:02:04]}  Nb3 {[%clk 0:01:59]} 22. Rab1 {[%clk 0:02:04]}  c5 {[%clk 0:01:59]} 23. Re1 {[%clk 0:01:56]}  Bg5 {[%clk 0:01:55]} 24. Bxg5 {[%clk 0:01:30]}  Qxg5 {[%clk 0:01:56]} 25. Rbd1 {[%clk 0:01:31]}  Rac8 {[%clk 0:01:52]} 26. Nh2 {[%clk 0:01:31]}  c4 {[%clk 0:01:46]} 27. Nf3 {[%clk 0:01:31]}  Qd8 {[%clk 0:01:34]} 28. e5 {[%clk 0:01:26]}  Qd5 {[%clk 0:01:28]} 29. dxc4 {[%clk 0:01:20]}  bxc4 {[%clk 0:01:22]} 30. Qf2 {[%clk 0:01:15]}  d3 {[%clk 0:01:14]} 31. Qh4 {[%clk 0:01:12]}  c3 {[%clk 0:01:03]} 32. bxc3 {[%clk 0:01:12]}  Rxc3 {[%clk 0:01:04]} 33. f6 {[%clk 0:01:00]}  d2 {[%clk 0:01:04]} 34. Rf1 {[%clk 0:00:34]}  Qd3 {[%clk 0:00:37]} 35. fxg7 {[%clk 0:00:31]}  Qe3+ {[%clk 0:00:30]} 36. Kh2 {[%clk 0:00:24]}  Rc1 {[%clk 0:00:30]} 37. Qf6 {[%clk 0:00:17]}  Rxd1 {[%clk 0:00:28]} 38. Rxd1 {[%clk 0:00:18]}  Re6 {[%clk 0:00:23]} 39. Qd8+ {[%clk 0:00:18]}  Kxg7 {[%clk 0:00:22]} 40. Nxd2 {[%clk 0:00:14]}  Qxe5+ {[%clk 0:00:22]} 41. Kh1 {[%clk 0:00:14]}  Rd6 {[%clk 0:00:23]} 42. Qh4 {[%clk 0:00:06]}  Rxd2 {[%clk 0:00:20]} 43. Rxd2 {[%clk 0:00:02]}  Nxd2 {[%clk 0:00:21]} 44. Qg4+ {[%clk 0:00:03]}  Kh7 {[%clk 0:00:19]} 45. Qd1 {[%clk 0:00:02]}  Qf4 {[%clk 0:00:16]} 46. Qc2+ {[%clk 0:00:02]}  Ne4 {[%clk 0:00:16]} 47. Qxa4 {[%clk 0:00:01]}  Ng3+ {[%clk 0:00:15]} 0-1


[Site "https://www.chess.com"]

[Event "Titled Tuesday Blitz November 22 Late 2022"]
[White "Corrales Jimenez, Fidel"]
[Black "Sabuk, Piotr"]
[WhiteFideId "3506690"]
[BlackFideId "1137565"]
[WhiteElo "2541"]
[BlackElo "2326"]
[Result "1-0"]
[Round "11"]
[TimeControl "180+1"]
[Date "2022.11.23"]
[WhiteClock "0:00:07"]
[BlackClock "0:00:05"]

1. b3 {[%clk 0:03:00]}  e5 {[%clk 0:02:59]} 2. Bb2 {[%clk 0:03:01]}  Nc6 {[%clk 0:02:59]} 3. c4 {[%clk 0:03:02]}  g6 {[%clk 0:02:54]} 4. g3 {[%clk 0:03:03]}  Bg7 {[%clk 0:02:54]} 5. Bg2 {[%clk 0:03:03]}  Nge7 {[%clk 0:02:55]} 6. Nc3 {[%clk 0:03:03]}  O-O {[%clk 0:02:53]} 7. e3 {[%clk 0:03:04]}  d6 {[%clk 0:02:51]} 8. Nge2 {[%clk 0:03:04]}  Be6 {[%clk 0:02:50]} 9. d4 {[%clk 0:03:05]}  exd4 {[%clk 0:02:48]} 10. exd4 {[%clk 0:03:05]}  d5 {[%clk 0:02:48]} 11. c5 {[%clk 0:03:05]}  Nf5 {[%clk 0:02:30]} 12. Na4 {[%clk 0:03:05]}  Re8 {[%clk 0:02:22]} 13. O-O {[%clk 0:03:05]}  Nb8 {[%clk 0:02:11]} 14. Nf4 {[%clk 0:03:02]}  c6 {[%clk 0:02:04]} 15. b4 {[%clk 0:02:59]}  Nd7 {[%clk 0:02:01]} 16. Nxe6 {[%clk 0:02:55]}  Rxe6 {[%clk 0:02:01]} 17. Bh3 {[%clk 0:02:47]}  Qf6 {[%clk 0:01:59]} 18. Qd3 {[%clk 0:02:37]}  Rae8 {[%clk 0:01:53]} 19. Rad1 {[%clk 0:02:36]}  Re4 {[%clk 0:01:42]} 20. Nc3 {[%clk 0:01:50]}  Rxd4 {[%clk 0:01:39]} 21. Nxd5 {[%clk 0:01:50]}  Rxd5 {[%clk 0:01:00]} 22. Bxf6 {[%clk 0:01:49]}  Rxd3 {[%clk 0:00:59]} 23. Bxg7 {[%clk 0:01:49]}  Rxd1 {[%clk 0:00:53]} 24. Rxd1 {[%clk 0:01:49]}  Nxc5 {[%clk 0:00:46]} 25. Ba1 {[%clk 0:01:41]}  Ne6 {[%clk 0:00:44]} 26. Bf6 {[%clk 0:01:31]}  Nf8 {[%clk 0:00:33]} 27. a4 {[%clk 0:01:29]}  h5 {[%clk 0:00:29]} 28. Kg2 {[%clk 0:01:27]}  Re6 {[%clk 0:00:28]} 29. Ba1 {[%clk 0:01:26]}  Rd6 {[%clk 0:00:28]} 30. Rxd6 {[%clk 0:01:16]}  Nxd6 {[%clk 0:00:28]} 31. Be5 {[%clk 0:01:15]}  Nc4 {[%clk 0:00:24]} 32. Bd4 {[%clk 0:01:15]}  b6 {[%clk 0:00:21]} 33. Bc8 {[%clk 0:01:09]}  Ne6 {[%clk 0:00:21]} 34. Bc3 {[%clk 0:01:05]}  Kf8 {[%clk 0:00:20]} 35. Bb7 {[%clk 0:01:05]}  c5 {[%clk 0:00:20]} 36. b5 {[%clk 0:01:05]}  Ke7 {[%clk 0:00:19]} 37. Bd5 {[%clk 0:01:05]}  Nd6 {[%clk 0:00:19]} 38. h4 {[%clk 0:01:02]}  Nd4 {[%clk 0:00:18]} 39. f3 {[%clk 0:00:59]}  N6f5 {[%clk 0:00:18]} 40. Kf2 {[%clk 0:00:58]}  f6 {[%clk 0:00:16]} 41. Bd2 {[%clk 0:00:56]}  Kd6 {[%clk 0:00:16]} 42. Bc4 {[%clk 0:00:55]}  Ne6 {[%clk 0:00:16]} 43. Be1 {[%clk 0:00:52]}  Nfd4 {[%clk 0:00:16]} 44. g4 {[%clk 0:00:50]}  f5 {[%clk 0:00:16]} 45. g5 {[%clk 0:00:49]}  Ke5 {[%clk 0:00:14]} 46. Bd2 {[%clk 0:00:40]}  f4 {[%clk 0:00:13]} 47. Bd3 {[%clk 0:00:39]}  Nf5 {[%clk 0:00:14]} 48. Bc3+ {[%clk 0:00:38]}  Ned4 {[%clk 0:00:14]} 49. a5 {[%clk 0:00:28]}  Nxh4 {[%clk 0:00:12]} 50. a6 {[%clk 0:00:20]}  Nf5 {[%clk 0:00:11]} 51. Bc4 {[%clk 0:00:20]}  Nd6 {[%clk 0:00:11]} 52. Bd3 {[%clk 0:00:19]}  Ke6 {[%clk 0:00:07]} 53. Bxg6 {[%clk 0:00:16]}  N6xb5 {[%clk 0:00:07]} 54. Bd2 {[%clk 0:00:16]}  Ke5 {[%clk 0:00:07]} 55. Bxh5 {[%clk 0:00:16]}  Kf5 {[%clk 0:00:07]} 56. g6 {[%clk 0:00:16]}  Kf6 {[%clk 0:00:03]} 57. Bxf4 {[%clk 0:00:16]}  Nf5 {[%clk 0:00:02]} 58. Bc1 {[%clk 0:00:10]}  Nbd6 {[%clk 0:00:01]} 59. Bb2+ {[%clk 0:00:09]}  Kg5 {[%clk 0:00:02]} 60. g7 {[%clk 0:00:06]}  Nxg7 {[%clk 0:00:01]} 61. Bg4 {[%clk 0:00:07]}  Ngf5 {[%clk 0:00:01]} 62. Be5 {[%clk 0:00:07]}  Nd4 {[%clk 0:00:01]} 63. Kg3 {[%clk 0:00:06]}  N4b5 {[%clk 0:00:02]} 64. f4+ {[%clk 0:00:06]}  Kg6 {[%clk 0:00:02]} 65. Be2 {[%clk 0:00:07]}  Nf5+ {[%clk 0:00:03]} 66. Kg4 {[%clk 0:00:07]}  Nbd4 {[%clk 0:00:04]} 67. Bd3 {[%clk 0:00:06]}  c4 {[%clk 0:00:04]} 68. Be4 {[%clk 0:00:07]}  c3 {[%clk 0:00:03]} 69. Bxd4 {[%clk 0:00:07]}  c2 {[%clk 0:00:03]} 70. Bxf5+ {[%clk 0:00:07]}  Kh6 {[%clk 0:00:03]} 71. Bxc2 {[%clk 0:00:08]}  b5 {[%clk 0:00:03]} 72. Bf6 {[%clk 0:00:07]}  b4 {[%clk 0:00:04]} 73. Kf5 {[%clk 0:00:06]}  b3 {[%clk 0:00:04]} 74. Bxb3 {[%clk 0:00:07]}  Kh7 {[%clk 0:00:04]} 75. Bd1 {[%clk 0:00:07]}  Kh6 {[%clk 0:00:05]} 76. Bg4 {[%clk 0:00:06]}  Kh7 {[%clk 0:00:05]} 77. Kg5 {[%clk 0:00:07]} 1-0


[Site "https://www.chess.com"]

[Event "Titled Tuesday Blitz November 22 Late 2022"]
[White "Deac, Bogdan-Daniel"]
[Black "Kamsky, Gata"]
[WhiteFideId "1226380"]
[BlackFideId "2000024"]
[WhiteElo "2648"]
[BlackElo "2666"]
[Result "1-0"]
[Round "11"]
[TimeControl "180+1"]
[Date "2022.11.23"]
[WhiteClock "0:00:07"]
[BlackClock "0:00:01"]

1. e4 {[%clk 0:02:59]}  e5 {[%clk 0:02:59]} 2. Nf3 {[%clk 0:02:59]}  Nc6 {[%clk 0:02:58]} 3. Bb5 {[%clk 0:02:59]}  a6 {[%clk 0:02:57]} 4. Bxc6 {[%clk 0:02:59]}  dxc6 {[%clk 0:02:56]} 5. Nc3 {[%clk 0:03:00]}  Qd6 {[%clk 0:02:49]} 6. d4 {[%clk 0:02:59]}  exd4 {[%clk 0:02:48]} 7. Qxd4 {[%clk 0:02:59]}  Qxd4 {[%clk 0:02:47]} 8. Nxd4 {[%clk 0:02:59]}  Bd7 {[%clk 0:02:46]} 9. Bf4 {[%clk 0:02:58]}  O-O-O {[%clk 0:02:46]} 10. O-O-O {[%clk 0:02:59]}  Ne7 {[%clk 0:02:44]} 11. f3 {[%clk 0:02:55]}  Ng6 {[%clk 0:02:42]} 12. Bg3 {[%clk 0:02:55]}  f6 {[%clk 0:02:40]} 13. Rd2 {[%clk 0:02:44]}  Bb4 {[%clk 0:02:34]} 14. Nde2 {[%clk 0:02:43]}  Rhe8 {[%clk 0:02:27]} 15. Rhd1 {[%clk 0:02:40]}  Bc5 {[%clk 0:02:25]} 16. Rd3 {[%clk 0:02:25]}  Ne5 {[%clk 0:02:20]} 17. Bxe5 {[%clk 0:02:20]}  fxe5 {[%clk 0:02:21]} 18. Ng3 {[%clk 0:02:13]}  g6 {[%clk 0:02:20]} 19. Nf1 {[%clk 0:02:10]}  Be6 {[%clk 0:02:11]} 20. Rxd8+ {[%clk 0:02:09]}  Rxd8 {[%clk 0:02:11]} 21. Rxd8+ {[%clk 0:02:10]}  Kxd8 {[%clk 0:02:11]} 22. b3 {[%clk 0:02:10]}  Ke7 {[%clk 0:02:06]} 23. Kd2 {[%clk 0:02:07]}  h5 {[%clk 0:02:05]} 24. Ne2 {[%clk 0:02:03]}  b5 {[%clk 0:02:03]} 25. Ne3 {[%clk 0:02:01]}  Kf6 {[%clk 0:02:00]} 26. Kd3 {[%clk 0:01:48]}  Ba7 {[%clk 0:01:43]} 27. Nc1 {[%clk 0:01:42]}  Bc5 {[%clk 0:01:39]} 28. Kd2 {[%clk 0:01:40]}  a5 {[%clk 0:01:23]} 29. Nd3 {[%clk 0:01:39]}  Bb6 {[%clk 0:01:22]} 30. h4 {[%clk 0:01:31]}  a4 {[%clk 0:00:57]} 31. g3 {[%clk 0:01:23]}  axb3 {[%clk 0:00:55]} 32. axb3 {[%clk 0:01:15]}  Bd4 {[%clk 0:00:50]} 33. b4 {[%clk 0:00:59]}  Ba7 {[%clk 0:00:39]} 34. c3 {[%clk 0:00:40]}  Bc8 {[%clk 0:00:36]} 35. f4 {[%clk 0:00:24]}  exf4 {[%clk 0:00:36]} 36. gxf4 {[%clk 0:00:25]}  Bd7 {[%clk 0:00:31]} 37. Nc5 {[%clk 0:00:21]}  Be8 {[%clk 0:00:26]} 38. Nc2 {[%clk 0:00:17]}  Ke7 {[%clk 0:00:21]} 39. e5 {[%clk 0:00:14]}  Bf7 {[%clk 0:00:21]} 40. Nd4 {[%clk 0:00:13]}  Bd5 {[%clk 0:00:21]} 41. Ke3 {[%clk 0:00:13]}  Bb6 {[%clk 0:00:18]} 42. f5 {[%clk 0:00:09]}  gxf5 {[%clk 0:00:18]} 43. Nxf5+ {[%clk 0:00:09]}  Kf7 {[%clk 0:00:17]} 44. Kf4 {[%clk 0:00:09]}  Bc4 {[%clk 0:00:15]} 45. Nd4 {[%clk 0:00:08]}  Bd5 {[%clk 0:00:15]} 46. Kf5 {[%clk 0:00:08]}  Bc4 {[%clk 0:00:10]} 47. e6+ {[%clk 0:00:08]}  Kg7 {[%clk 0:00:09]} 48. Ke5 {[%clk 0:00:07]}  Bf1 {[%clk 0:00:06]} 49. Nf5+ {[%clk 0:00:06]}  Kg6 {[%clk 0:00:06]} 50. Ne7+ {[%clk 0:00:06]}  Kg7 {[%clk 0:00:07]} 51. Nxc6 {[%clk 0:00:07]}  Bg2 {[%clk 0:00:04]} 52. Nd4 {[%clk 0:00:07]}  Bf1 {[%clk 0:00:04]} 53. Nf5+ {[%clk 0:00:07]}  Kg6 {[%clk 0:00:04]} 54. Ne3 {[%clk 0:00:07]}  Be2 {[%clk 0:00:02]} 55. Nd5 {[%clk 0:00:07]}  Bc4 {[%clk 0:00:01]} 56. Nf4+ {[%clk 0:00:07]} 1-0


[Site "https://www.chess.com"]

[Event "Titled Tuesday Blitz November 22 Late 2022"]
[White "Ferreira, Vitor Hugo Vieira"]
[Black "Shapiro, Daniel"]
[WhiteFideId "2119765"]
[BlackFideId "2001780"]
[WhiteElo "2168"]
[BlackElo "2321"]
[Result "1-0"]
[Round "11"]
[TimeControl "180+1"]
[Date "2022.11.23"]
[WhiteClock "0:00:13"]
[BlackClock "0:00:17"]

1. e4 {[%clk 0:02:33]}  e5 {[%clk 0:03:00]} 2. Nf3 {[%clk 0:02:32]}  Nc6 {[%clk 0:03:00]} 3. d4 {[%clk 0:02:33]}  exd4 {[%clk 0:02:59]} 4. Bc4 {[%clk 0:02:31]}  d6 {[%clk 0:02:58]} 5. O-O {[%clk 0:02:29]}  Be7 {[%clk 0:02:48]} 6. Nxd4 {[%clk 0:02:28]}  Nf6 {[%clk 0:02:39]} 7. Nc3 {[%clk 0:02:27]}  Bd7 {[%clk 0:02:32]} 8. Kh1 {[%clk 0:02:20]}  O-O {[%clk 0:02:32]} 9. a3 {[%clk 0:02:14]}  Re8 {[%clk 0:02:31]} 10. f4 {[%clk 0:02:04]}  Bf8 {[%clk 0:02:30]} 11. Re1 {[%clk 0:01:34]}  Ng4 {[%clk 0:01:57]} 12. Re2 {[%clk 0:01:22]}  Qh4 {[%clk 0:01:49]} 13. Nf3 {[%clk 0:01:01]}  Nf2+ {[%clk 0:01:40]} 14. Rxf2 {[%clk 0:00:51]}  Qxf2 {[%clk 0:01:39]} 15. Ng5 {[%clk 0:00:43]}  Re7 {[%clk 0:01:14]} 16. Nd5 {[%clk 0:00:35]}  Rae8 {[%clk 0:01:02]} 17. Be3 {[%clk 0:00:34]}  Qh4 {[%clk 0:01:00]} 18. g3 {[%clk 0:00:26]}  Qh6 {[%clk 0:00:48]} 19. f5 {[%clk 0:00:23]}  Bxf5 {[%clk 0:00:35]} 20. Nxf7 {[%clk 0:00:15]}  Qh3 {[%clk 0:00:33]} 21. Nxe7+ {[%clk 0:00:13]}  Rxe7 {[%clk 0:00:27]} 22. Ng5+ {[%clk 0:00:13]}  Kh8 {[%clk 0:00:25]} 23. Nxh3 {[%clk 0:00:13]}  Bxe4+ {[%clk 0:00:25]} 24. Kg1 {[%clk 0:00:13]}  Ne5 {[%clk 0:00:21]} 25. Bd5 {[%clk 0:00:12]}  Nf3+ {[%clk 0:00:17]} 26. Kf2 {[%clk 0:00:13]} 1-0


[Site "https://www.chess.com"]

[Event "Titled Tuesday Blitz November 22 Late 2022"]
[White "Figorito, Nick"]
[Black "Antonova, Nadezhda"]
[WhiteFideId "30923689"]
[BlackFideId "14700182"]
[WhiteElo "2277"]
[BlackElo "1813"]
[Result "1/2-1/2"]
[Round "11"]
[TimeControl "180+1"]
[Date "2022.11.23"]
[WhiteClock "0:00:04"]
[BlackClock "0:00:02"]

1. Nf3 {[%clk 0:03:00]}  Nf6 {[%clk 0:02:59]} 2. g3 {[%clk 0:03:00]}  g6 {[%clk 0:02:59]} 3. Bg2 {[%clk 0:03:01]}  Bg7 {[%clk 0:02:59]} 4. O-O {[%clk 0:03:02]}  O-O {[%clk 0:03:00]} 5. c4 {[%clk 0:03:03]}  d6 {[%clk 0:02:59]} 6. Nc3 {[%clk 0:03:03]}  Nc6 {[%clk 0:03:00]} 7. d3 {[%clk 0:03:04]}  e5 {[%clk 0:02:59]} 8. Rb1 {[%clk 0:03:03]}  a5 {[%clk 0:02:59]} 9. a3 {[%clk 0:03:04]}  Nd4 {[%clk 0:02:59]} 10. b4 {[%clk 0:03:00]}  axb4 {[%clk 0:02:59]} 11. axb4 {[%clk 0:03:01]}  c6 {[%clk 0:02:56]} 12. b5 {[%clk 0:03:01]}  Qc7 {[%clk 0:02:44]} 13. Be3 {[%clk 0:02:54]}  Nxf3+ {[%clk 0:02:17]} 14. Bxf3 {[%clk 0:02:53]}  Be6 {[%clk 0:02:17]} 15. bxc6 {[%clk 0:02:47]}  bxc6 {[%clk 0:02:17]} 16. Rb6 {[%clk 0:02:47]}  d5 {[%clk 0:02:13]} 17. cxd5 {[%clk 0:01:59]}  cxd5 {[%clk 0:02:13]} 18. Nb5 {[%clk 0:01:59]}  Qe7 {[%clk 0:01:50]} 19. Qb1 {[%clk 0:01:24]}  Rfb8 {[%clk 0:01:36]} 20. Nd6 {[%clk 0:00:51]}  Rxb6 {[%clk 0:01:23]} 21. Qxb6 {[%clk 0:00:52]}  Nd7 {[%clk 0:01:24]} 22. Qb7 {[%clk 0:00:46]}  Rb8 {[%clk 0:01:23]} 23. Qc7 {[%clk 0:00:44]}  Bf8 {[%clk 0:01:00]} 24. Nb7 {[%clk 0:00:43]}  d4 {[%clk 0:00:30]} 25. Bd2 {[%clk 0:00:39]}  Qe8 {[%clk 0:00:19]} 26. Bc6 {[%clk 0:00:37]}  Qc8 {[%clk 0:00:18]} 27. Qxc8 {[%clk 0:00:34]}  Rxc8 {[%clk 0:00:18]} 28. Bg2 {[%clk 0:00:28]}  Nc5 {[%clk 0:00:14]} 29. Nxc5 {[%clk 0:00:27]}  Rxc5 {[%clk 0:00:13]} 30. Rc1 {[%clk 0:00:28]}  Rxc1+ {[%clk 0:00:13]} 31. Bxc1 {[%clk 0:00:29]}  f5 {[%clk 0:00:11]} 32. Bf3 {[%clk 0:00:28]}  Kf7 {[%clk 0:00:11]} 33. h4 {[%clk 0:00:28]}  Bd6 {[%clk 0:00:11]} 34. Kg2 {[%clk 0:00:28]}  Ke7 {[%clk 0:00:09]} 35. Bc6 {[%clk 0:00:27]}  Bd7 {[%clk 0:00:09]} 36. Bxd7 {[%clk 0:00:28]}  Kxd7 {[%clk 0:00:09]} 37. f3 {[%clk 0:00:27]}  Ke6 {[%clk 0:00:09]} 38. Bb2 {[%clk 0:00:26]}  Kd5 {[%clk 0:00:10]} 39. Kf2 {[%clk 0:00:26]}  Kc6 {[%clk 0:00:10]} 40. Bc1 {[%clk 0:00:25]}  Kb5 {[%clk 0:00:10]} 41. Bd2 {[%clk 0:00:26]}  Ka4 {[%clk 0:00:10]} 42. Bg5 {[%clk 0:00:24]}  Kb3 {[%clk 0:00:10]} 43. Bf6 {[%clk 0:00:24]}  Kc2 {[%clk 0:00:09]} 44. f4 {[%clk 0:00:15]}  exf4 {[%clk 0:00:07]} 45. gxf4 {[%clk 0:00:15]}  Bxf4 {[%clk 0:00:07]} 46. Bxd4 {[%clk 0:00:15]}  Kd1 {[%clk 0:00:06]} 47. Be3 {[%clk 0:00:10]}  Bd6 {[%clk 0:00:06]} 48. Bg5 {[%clk 0:00:10]}  Bb4 {[%clk 0:00:04]} 49. e4 {[%clk 0:00:09]}  fxe4 {[%clk 0:00:04]} 50. dxe4 {[%clk 0:00:10]}  Bd6 {[%clk 0:00:04]} 51. Ke3 {[%clk 0:00:09]}  Bb4 {[%clk 0:00:03]} 52. Kd4 {[%clk 0:00:09]}  Ba3 {[%clk 0:00:03]} 53. e5 {[%clk 0:00:09]}  Bb2+ {[%clk 0:00:03]} 54. Kd5 {[%clk 0:00:09]}  Ke2 {[%clk 0:00:01]} 55. e6 {[%clk 0:00:09]}  Ba3 {[%clk 0:00:01]} 56. e7 {[%clk 0:00:08]}  Bxe7 {[%clk 0:00:01]} 57. Bxe7 {[%clk 0:00:08]}  Kf3 {[%clk 0:00:01]} 58. Ke5 {[%clk 0:00:08]}  Kg4 {[%clk 0:00:01]} 59. Ke6 {[%clk 0:00:05]}  h6 {[%clk 0:00:01]} 60. Kf7 {[%clk 0:00:03]}  g5 {[%clk 0:00:02]} 61. hxg5 {[%clk 0:00:03]}  hxg5 {[%clk 0:00:02]} 62. Bxg5 {[%clk 0:00:04]} 1/2-1/2


[Site "https://www.chess.com"]